fUSD/lending_fUSD_20250609
["ID","MTS","AMOUNT","RATE_DAILY","PERIOD"]
[365097974,1749465040611,-1642856.56908401,0.0002,2]
[365097976,1749465040620,-37139.38353987,0.0002,2]
[365097978,1749465040629,-1196.6641308,0.0002,2]
[365097980,1749465040638,-209.4,0.0002,2]
[365097982,1749465040648,-1706.55014684,0.0002,2]
[365097984,1749465040657,-8765243.63044259,0.0002,2]
[365097986,1749465040669,-545.25680154,0.0002,2]
[365097988,1749465040680,-654.9199999,0.0002,2]
[365097991,1749465040691,-965.21925764,0.0002,2]
[365097993,1749465040702,-2100.6,0.0002,2]
[365097995,1749465040717,-1240.07,0.0002,2]
[365098026,1749465041000,-535.569,0.0002,2]
[365098056,1749465041297,-11992.23330944,0.0002,2]
[365098059,1749465041310,-1609.95,0.0002,2]
[365098062,1749465041321,-5551.3308,0.0002,2]
[365098064,1749465041345,-15134.27374972,0.0002,2]
[365098067,1749465041366,-860.48,0.0002,2]
[365098158,1749465043067,-5344.0,0.00019168,2]
[365098159,1749465043089,-2151.2,0.00019168,2]
[365098160,1749465043100,-15760.2089387,0.00019168,2]
[365098161,1749465043110,-11274.15737673,0.0002,2]
[365098162,1749465043243,-353.95794755,0.0002,2]
[365098163,1749465043257,-3980.79532866,0.0002,2]
[365098414,1749465045974,-10745.0,0.0002,2]
[365098415,1749465046040,-8482.73233665,0.0002,2]
[365098416,1749465046052,-1757.64591288,0.0002,2]
[365098417,1749465046063,-1552.80000005,0.0002,2]
[365098418,1749465046074,-252.86999999,0.0002,2]
[365098419,1749465046094,-3501.34010292,0.0002,2]
[365098420,1749465046247,-1045.19712599,0.0002,2]
[365098421,1749465046260,-301.9431694,0.0002,2]
[365098422,1749465046272,-889.76448506,0.0002,2]
[365098423,1749465046303,-42699.8824537,0.0002,2]
[365098544,1749465047593,-231.86171581,0.0001712,30]
[365098585,1749465049463,-10.62460594,0.0001712,30]
[365098591,1749465225197,1367.6,0.00016055,2]
[365098592,1749465229472,162.63,0.00014367,2]
[365098593,1749465244568,1513.6252991,0.0001705,2]
[365098680,1749465712215,515.0,0.0001712,120]
[365098686,1749465851974,-200.0,0.00017686,2]
[365098687,1749465851997,-250.0,0.00017693,2]
[365098688,1749465852020,-300.0,0.00017693,2]
[365098689,1749465852043,-250.0,0.000177,2]
[365098691,1749465896652,398.29431961,0.0001712,120]
[365098693,1749465985051,370.78,0.00013699,2]
[365098695,1749466082622,-171.02410308,0.0001713,30]
[365098696,1749466085579,-167.69683637,0.0001713,30]
[365098697,1749466087417,-151.0,0.0001713,30]
[365098698,1749466091250,-175.49300185,0.0001713,30]
[365098699,1749466093974,-173.36291506,0.0001713,30]
[365098700,1749466096067,-151.0,0.0001713,30]
[365098701,1749466098201,-250.0,0.0001713,30]
[365098702,1749466101402,-189.09,0.0001713,30]
[365098703,1749466104383,-318.35129098,0.0001713,30]
[365098704,1749466109555,-193.38213883,0.0001713,30]
[365098706,1749466112107,-151.0,0.0001713,30]
[365098707,1749466118199,-151.0,0.0001713,30]
[365098709,1749466126569,-197.97244107,0.0001713,30]
[365098710,1749466129633,-193.57919244,0.0001713,30]
[365098712,1749466134103,-170.30429656,0.0001713,30]
[365098713,1749466138315,-247.79686332,0.0001713,30]
[365098714,1749466143541,-247.40909751,0.0001713,30]
[365098715,1749466145438,-261.2422437,0.0001713,30]
[365098716,1749466149620,-377.68005286,0.0001713,30]
[365098717,1749466152645,-161.86766004,0.0001713,30]
[365098718,1749466155212,-151.0,0.0001713,30]
[365098721,1749466218976,1397.85,0.00015435,2]
[365098722,1749466220224,166.42,0.00013882,2]
[365098734,1749466232041,-1229.20146541,0.0001713,30]
[365098736,1749466232053,-947.13462867,0.0001713,30]
[365098738,1749466232062,-19.39540976,0.00017276,2]
[365098739,1749466232149,-354.18459024,0.00017276,2]
[365098740,1749466232158,-981.39824991,0.00017331,120]
[365098741,1749466232169,-1018.60175009,0.00017331,120]
[365098742,1749466232179,-73.05383607,0.00017353,2]
[365098743,1749466232206,-542.468985,0.00017353,2]
[365098744,1749466232219,-981.67717893,0.00017353,2]
[365098745,1749466232228,-150.0,0.00017358,2]
[365098746,1749466232238,-880.29,0.00017369,2]
[365098747,1749466232248,-1200.0,0.00017517,2]
[365098748,1749466232257,-4209.11,0.00017518,2]
[365098749,1749466232267,-500.0,0.00017571,2]
[365098750,1749466232276,-284.01267497,0.00017645,2]
[365098751,1749466232286,-250.0,0.00017652,2]
[365098752,1749466232295,-300.0,0.00017652,2]
[365098753,1749466232304,-1465.83778212,0.00017659,2]
[365098754,1749466232316,-4192.61221788,0.00017659,2]
[365098755,1749466232327,-300.0,0.00017685,2]
[365098756,1749466232336,-300.0,0.00017686,2]
[365098757,1749466232346,-373.34717956,0.00017687,2]
[365098758,1749466232358,-329.76386651,0.00017687,2]
[365098759,1749466232370,-19559.82895393,0.00017687,2]
[365098760,1749466232379,-1397.85,0.00017699,2]
[365098761,1749466232389,-1095.02,0.00017751,2]
[365098762,1749466232399,-200.0,0.00017756,2]
[365098763,1749466232408,-284.01267496,0.00017769,2]
[365098764,1749466232418,-248.7,0.00017779,2]
[365098765,1749466232427,-755.1755021,0.00017791,2]
[365098767,1749466232436,-600.0,0.000178,2]
[365098769,1749466232445,-468.45,0.00017834,2]
[365098771,1749466232455,-906.55645999,0.00017884,2]
[365098773,1749466232464,-284.01267496,0.00017892,2]
[365098775,1749466232473,-906.55646,0.00017892,2]
[365098777,1749466232482,-600.0,0.000179,2]
[365098779,1749466232491,-159.37431609,0.00017976,30]
[365098781,1749466232500,-151.0,0.00017983,2]
[365098783,1749466232510,-151.0,0.00017983,2]
[365098785,1749466232519,-151.0,0.00017983,2]
[365098787,1749466232529,-151.0,0.00017983,2]
[365098789,1749466232538,-151.0,0.00017983,2]
[365098791,1749466232552,-151.0,0.00017983,2]
[365098793,1749466232561,-245.0,0.00017983,2]
[365098795,1749466232571,-550.0,0.0001799,2]
[365098797,1749466232580,-1000.0,0.00017991,2]
[365098799,1749466232590,-150.0,0.00017991,2]
[365098801,1749466232600,-150.0,0.00017991,2]
[365098803,1749466232610,-152.14,0.00018,2]
[365098805,1749466232619,-244.31384011,0.00018,2]
[365098807,1749466232628,-392.0,0.00018002,2]
[365098809,1749466232638,-150.0,0.00018018,2]
[365098811,1749466232647,-273.15,0.00018019,2]
[365098813,1749466232656,-151.0,0.00018038,2]
[365098815,1749466232665,-500.0,0.0001804,2]
[365098817,1749466232675,-202.11239068,0.00018046,2]
[365098819,1749466232684,-500.0,0.00018091,2]
[365098821,1749466232694,-417.6293078,0.00018091,2]
[365098823,1749466232703,-500.0,0.00018091,2]
[365098825,1749466232712,-180.14494231,0.00018091,2]
[365098827,1749466232721,-240.30422123,0.00018091,2]
[365098829,1749466232731,-290.76751942,0.00018091,2]
[365098831,1749466232741,-1552.0,0.00018091,2]
[365098832,1749466232750,-24499.32676899,0.00018092,2]
[365098834,1749466232759,-544.7,0.00018102,2]
[365098836,1749466232768,-227.7629,0.00018155,2]
[365098838,1749466232777,-1420.0,0.00018181,2]
[365098840,1749466232787,-1603.94290105,0.00018219,2]
[365098842,1749466232796,-1088.0,0.00018232,2]
[365098844,1749466232805,-312.03,0.00018254,2]
[365098846,1749466232815,-1659.0,0.0001827,2]
[365098848,1749466232826,-174.32,0.00018279,2]
[365098850,1749466232835,-1603.94290088,0.00018307,2]
[365098852,1749466232844,-250.0,0.00018309,2]
[365098854,1749466232853,-1000.0,0.0001831,2]
[365098868,1749466232989,-626.0,0.0001836,2]
[365098870,1749466233000,-1603.94290088,0.00018396,2]
[365098872,1749466233011,-1005.0,0.00018449,2]
[365098874,1749466233020,-1603.94290088,0.00018484,2]
[365098876,1749466233030,-713.0,0.00018539,2]
[365098877,1749466233040,-1603.94290088,0.00018573,2]
[365098879,1749466233049,-164.91,0.00018584,2]
[365098881,1749466233060,-1845.0,0.00018628,2]
[365098884,1749466233070,-1603.94290088,0.00018661,2]
[365098885,1749466233080,-210.0,0.00018718,2]
[365098887,1749466233090,-1603.94290088,0.0001875,2]
[365098889,1749466233100,-365.0,0.00018808,2]
[365098891,1749466233111,-1603.94290088,0.00018838,2]
[365098893,1749466233121,-250.0,0.00018843,2]
[365098895,1749466233131,-300.0,0.00018843,2]
[365098898,1749466233142,-155.2187158,0.00018875,30]
[365098899,1749466233152,-1648.0,0.00018897,2]
[365098901,1749466233162,-201.73481482,0.000189,2]
[365098903,1749466233171,-1603.94290088,0.00018927,2]
[365098905,1749466233181,-201.73481468,0.00018959,2]
[365098907,1749466233191,-747.0,0.00018987,2]
[365098909,1749466233201,-17271.39472793,0.00019,2]
[365098912,1749466233215,-367.184,0.00019,2]
[365098914,1749466233228,-325.6079996,0.00019,2]
[365098916,1749466233239,-592.89755575,0.00019,2]
[365098918,1749466233251,-2130.17085258,0.00019,2]
[365098920,1749466233262,-152.0,0.00019,2]
[365098922,1749466233271,-700.0,0.00019,6]
[365098924,1749466233281,-400.0,0.00019,5]
[365098926,1749466233291,-581.0777146,0.00019004,2]
[365098928,1749466233300,-1603.94290088,0.00019015,2]
[365098930,1749466233311,-201.73481468,0.00019018,2]
[365098932,1749466233321,-935.0,0.00019069,2]
[365098934,1749466233331,-529.0,0.00019076,2]
[365098936,1749466233341,-201.73481468,0.00019076,2]
[365098938,1749466233352,-1000.0,0.00019078,2]
[365098940,1749466233361,-162.15,0.0001909,2]
[365098942,1749466233372,-1500.0,0.000191,6]
[365098945,1749466233382,-1258.88423857,0.00019104,2]
[365098947,1749466233395,-345.05866231,0.00019104,2]
[365098949,1749466233405,-201.73481468,0.00019135,2]
[365098951,1749466233415,-367.63479601,0.00019166,2]
[365098953,1749466233427,-360.36520399,0.00019166,2]
[365098955,1749466233437,-151.0,0.00019178,2]
[365098957,1749466233447,-152.14,0.00019178,2]
[365098959,1749466233458,-349.41870752,0.00019178,2]
[365098961,1749466233470,-696.8401546,0.00019178,2]
[365098963,1749466233482,-453.74113788,0.00019178,2]
[365098965,1749466233492,-1603.94290088,0.00019192,2]
[365098967,1749466233502,-201.73481468,0.00019194,2]
[365098969,1749466233512,-2300.0,0.000192,7]
[365098970,1749466233522,-150.01,0.00019212,2]
[365098971,1749466233532,-1287.0818633,0.00019217,2]
[365098972,1749466233548,-372.51000098,0.00019217,2]
[365098973,1749466233560,-20.40813572,0.00019217,2]
[365098974,1749466233570,-201.73481468,0.00019253,2]
[365098975,1749466233580,-114.58389216,0.00019255,2]
[365098976,1749466233594,-632.41610784,0.00019255,2]
[365098977,1749466233604,-252.41680382,0.0001927,2]
[365098978,1749466233616,-47.58319618,0.0001927,2]
[365098979,1749466233626,-262.49219297,0.00019281,2]
[365098980,1749466233638,-1341.45070791,0.00019281,2]
[365098982,1749466233649,-3000.0,0.000193,7]
[365098983,1749466233659,-420.0,0.00019304,2]
[365098985,1749466233669,-104.60634834,0.00019312,2]
[365098988,1749466233685,-97.12846634,0.00019312,2]
[365098990,1749466233694,-1551.0,0.00019345,2]
[365098992,1749466233704,-203.10503826,0.00019368,2]
[365098994,1749466233714,-150.0,0.00019368,2]
[365098996,1749466233723,-150.0,0.00019368,2]
[365098998,1749466233733,-153.1708211,0.00019368,2]
[365099000,1749466233743,-150.0,0.00019368,2]
[365099001,1749466233752,-150.0,0.00019368,2]
[365099004,1749466233762,-155.69799975,0.00019368,2]
[365099005,1749466233772,-27.7565525,0.00019368,2]
[365099008,1749466233785,-122.2434475,0.00019368,2]
[365099011,1749466233803,-150.87819046,0.00019368,2]
[365099014,1749466233822,-25.57336204,0.00019368,2]
[365099017,1749466233847,-129.96776458,0.00019368,2]
[365099020,1749466233868,-150.0,0.00019368,2]
[365099022,1749466233884,-500.0,0.00019368,2]
[365099025,1749466233904,-151.94949467,0.00019368,2]
[365099028,1749466233923,-150.0,0.00019368,2]
[365099031,1749466233944,-150.0,0.00019368,2]
[365099034,1749466233962,-168.01464432,0.00019369,2]
[365099038,1749466233985,-1435.92825656,0.00019369,2]
[365099040,1749466234003,-167.94263353,0.00019371,2]
[365099043,1749466234021,-33.79218115,0.00019371,2]
[365099046,1749466234041,-150.0,0.00019395,2]
[365099048,1749466234054,-150.0,0.00019395,2]
[365099051,1749466234073,-150.0,0.00019395,2]
[365099053,1749466234087,-150.91648747,0.00019395,2]
[365099056,1749466234106,-500.0,0.00019395,2]
[365099059,1749466234122,-150.0,0.00019395,2]
[365099062,1749466234137,-150.0,0.00019395,2]
[365099064,1749466234153,-162.15,0.00019399,2]
[365099067,1749466234169,-800.0,0.000194,2]
[365099069,1749466234191,-800.0,0.000194,2]
[365099072,1749466234210,-653.14133139,0.000194,2]
[365099074,1749466234233,-146.85866861,0.000194,2]
[365099077,1749466234253,-800.0,0.000194,2]
[365099080,1749466234275,-458.19718048,0.000194,2]
[365099082,1749466234291,-3800.0,0.000194,7]
[365099085,1749466234307,-14362.78515556,0.00019409,2]
[365099089,1749466234339,-378.04484444,0.00019409,2]
[365099092,1749466234361,-250.0,0.0001941,2]
[365099094,1749466234380,-300.0,0.0001941,2]
[365099097,1749466234399,-201.07589709,0.00019423,2]
[365099099,1749466234416,-200.65106076,0.00019423,2]
[365099102,1749466234432,-200.0,0.00019423,2]
[365099104,1749466234447,-500.0,0.00019423,2]
[365099107,1749466234471,-200.0,0.00019423,2]
[365099110,1749466234489,-150.0,0.00019423,2]
[365099112,1749466234505,-201.73481468,0.00019429,2]
[365099113,1749466234522,-1836.0,0.00019435,2]
[365099114,1749466234538,-500.0,0.0001945,2]
[365099115,1749466234558,-247.0,0.0001945,2]
[365099116,1749466234579,-1603.94290088,0.00019458,2]
[365099117,1749466234596,-500.0,0.00019478,2]
[365099118,1749466234613,-201.73481468,0.00019488,2]
[365099119,1749466234628,-700.0,0.000195,7]
[365099120,1749466234643,-500.0,0.00019505,2]
[365099121,1749466234659,-1566.0,0.00019524,2]
[365099122,1749466234674,-500.0,0.00019532,2]
[365099123,1749466234689,-1603.94290088,0.00019546,2]
[365099124,1749466234704,-201.73481468,0.00019547,2]
[365099125,1749466234719,-500.0,0.0001956,2]
[365099126,1749466234733,-500.0,0.00019587,2]
[365099127,1749466234748,-700.0,0.000196,7]
[365099128,1749466234763,-201.73481468,0.00019606,2]
[365099129,1749466234777,-1093.0,0.00019614,2]
[365099130,1749466234792,-616.0,0.00019615,2]
[365099131,1749466234808,-1550.04997304,0.00019617,2]
[365099132,1749466234828,-222.52772696,0.00019617,2]
[365099133,1749466234843,-1603.94290088,0.00019635,2]
[365099134,1749466234857,-201.73481468,0.00019665,2]
[365099135,1749466234873,-193.76249172,0.00019685,2]
[365099136,1749466234886,-700.0,0.000197,7]
[365099137,1749466234902,-11579.76798949,0.000197,2]
[365099138,1749466234917,-984.0,0.00019703,2]
[365099139,1749466234933,-1603.94290088,0.00019723,2]
[365099140,1749466234948,-201.73481468,0.00019724,2]
[365099141,1749466234962,-156.587,0.00019726,2]
[365099142,1749466234977,-201.73481468,0.00019782,2]
[365099143,1749466234992,-1424.0,0.00019793,2]
[365099144,1749466235007,-155.0,0.00019795,2]
[365099145,1749466235022,-167.7,0.00019797,2]
[365099146,1749466235036,-1064.7453805,0.00019799,2]
[365099147,1749466235053,-700.0,0.000198,7]
[365099148,1749466235068,-647.11707419,0.0001981,2]
[365099149,1749466235085,-1603.94290088,0.00019812,2]
[365099150,1749466235100,-1064.74538048,0.00019813,2]
[365099151,1749466235116,-1064.74538048,0.00019828,2]
[365099152,1749466235127,-201.73481468,0.00019841,2]
[365099153,1749466235332,-1064.74538048,0.00019842,2]
[365099154,1749466235342,-5800.0,0.00019866,2]
[365099155,1749466235351,-5800.0,0.00019875,2]
[365099156,1749466235360,-349.55787412,0.0001988,2]
[365099157,1749466235370,-1832.0,0.00019882,2]
[365099158,1749466235379,-5800.0,0.00019883,2]
[365099159,1749466235388,-162.15,0.00019889,2]
[365099160,1749466235397,-162.15,0.00019889,2]
[365099161,1749466235407,-5800.0,0.00019892,2]
[365099162,1749466235416,-23418.94159514,0.00019899,2]
[365099163,1749466235426,-867.81,0.00019899,2]
[365099164,1749466235435,-23418.94159506,0.00019899,2]
[365099165,1749466235444,-23418.94159506,0.00019899,2]
[365099166,1749466235453,-23418.94159506,0.00019899,2]
[365099167,1749466235463,-23418.94159506,0.00019899,2]
[365099168,1749466235472,-23418.94159506,0.000199,2]
[365099169,1749466235481,-23418.94159506,0.000199,2]
[365099170,1749466235491,-23418.94159506,0.000199,2]
[365099171,1749466235500,-23418.94159506,0.000199,2]
[365099172,1749466235509,-1665.33865494,0.000199,2]
[365099173,1749466235519,-13785.71039539,0.000199,2]
[365099174,1749466235528,-12500.0,0.000199,2]
[365099175,1749466235537,-193.76249172,0.000199,2]
[365099176,1749466235547,-1269.0,0.000199,7]
[365099177,1749466235560,-201.73481468,0.000199,2]
[365099178,1749466235570,-5800.0,0.000199,2]
[365099179,1749466235581,-637.34731768,0.000199,3]
[365099180,1749466235590,-13272.47726013,0.000199,2]
[365099186,1749466238550,-644.77413568,0.00017989,2]
[365099188,1749466238560,-500.0,0.00017989,2]
[365099190,1749466238571,-500.0,0.00017989,2]
[365099191,1749466238582,-500.0,0.00017989,2]
[365099194,1749466238591,-500.0,0.00017989,2]
[365099195,1749466238601,-500.0,0.00017989,2]
[365099197,1749466238610,-500.0,0.00017989,2]
[365099199,1749466238620,-500.0,0.00017989,2]
[365099201,1749466238629,-500.0,0.00017989,2]
[365099203,1749466238638,-500.0,0.00017989,2]
[365099205,1749466238647,-500.0,0.00017989,2]
[365099207,1749466238657,-500.0,0.00017989,2]
[365099209,1749466238666,-500.0,0.00017989,2]
[365099212,1749466238676,-500.0,0.00017989,2]
[365099213,1749466238684,-500.0,0.00017989,2]
[365099216,1749466238693,-636.8241036,0.00017989,2]
[365099218,1749466238703,-433.04159119,0.00017989,2]
[365099220,1749466238712,-500.0,0.00017989,2]
[365099222,1749466238721,-500.0,0.00017989,2]
[365099223,1749466238730,-500.0,0.00017989,2]
[365099225,1749466238740,-500.0,0.00017989,2]
[365099227,1749466238750,-500.0,0.00017989,2]
[365099229,1749466238760,-500.0,0.00017989,2]
[365099231,1749466238769,-500.0,0.00017989,2]
[365099232,1749466238779,-500.0,0.00017989,2]
[365099234,1749466238789,-500.0,0.00017989,2]
[365099236,1749466238798,-500.0,0.00017989,2]
[365099238,1749466238807,-500.0,0.00017989,2]
[365099240,1749466238816,-500.0,0.00017989,2]
[365099241,1749466238825,-500.0,0.00017989,2]
[365099243,1749466238835,-500.0,0.00017989,2]
[365099245,1749466238844,-500.0,0.00017989,2]
[365099247,1749466238854,-500.0,0.00017989,2]
[365099248,1749466238863,-500.0,0.00017989,2]
[365099250,1749466238872,-360.66822515,0.00017989,2]
[365099252,1749466238882,-500.0,0.00017989,2]
[365099254,1749466238891,-500.0,0.00017989,2]
[365099256,1749466238901,-500.0,0.00017989,2]
[365099258,1749466238910,-500.0,0.00017989,2]
[365099259,1749466238920,-500.0,0.00017989,2]
[365099261,1749466238929,-500.0,0.00017989,2]
[365099263,1749466238940,-500.0,0.00017989,2]
[365099265,1749466238950,-500.0,0.00017989,2]
[365099267,1749466238959,-500.0,0.00017989,2]
[365099268,1749466238968,-500.0,0.00017989,2]
[365099270,1749466238978,-500.0,0.00017989,2]
[365099272,1749466238988,-500.0,0.00017989,2]
[365099274,1749466238997,-500.0,0.00017989,2]
[365099276,1749466239007,-435.42512046,0.00017989,2]
[365099278,1749466239016,-500.0,0.00017989,2]
[365099280,1749466239026,-500.0,0.00017989,2]
[365099281,1749466239036,-500.0,0.00017989,2]
[365099283,1749466239045,-500.0,0.00017989,2]
[365099285,1749466239055,-500.0,0.00017989,2]
[365099287,1749466239068,-500.0,0.00017989,2]
[365099289,1749466239077,-500.0,0.00017989,2]
[365099290,1749466239087,-500.0,0.00017989,2]
[365099292,1749466239097,-500.0,0.00017989,2]
[365099294,1749466239106,-500.0,0.00017989,2]
[365099296,1749466239116,-500.0,0.00017989,2]
[365099298,1749466239125,-500.0,0.00017989,2]
[365099299,1749466239134,-500.0,0.00017989,2]
[365099301,1749466239143,-500.0,0.00017989,2]
[365099303,1749466239152,-500.0,0.00017989,2]
[365099305,1749466239162,-500.0,0.00017989,2]
[365099306,1749466239171,-500.0,0.00017989,2]
[365099308,1749466239180,-500.0,0.00017989,2]
[365099310,1749466239190,-500.0,0.00017989,2]
[365099312,1749466239199,-500.0,0.00017989,2]
[365099314,1749466239208,-500.0,0.00017989,2]
[365099316,1749466239218,-500.0,0.00017989,2]
[365099318,1749466239227,-500.0,0.00017989,2]
[365099320,1749466239238,-500.0,0.00017989,2]
[365099322,1749466239247,-500.0,0.00017989,2]
[365099323,1749466239256,-290.90402746,0.00017989,2]
[365099325,1749466239266,-500.0,0.00017989,2]
[365099327,1749466239275,-500.0,0.00017989,2]
[365099329,1749466239284,-500.0,0.00017989,2]
[365099331,1749466239293,-500.0,0.00017989,2]
[365099332,1749466239302,-184.28592038,0.00019178,2]
[365099334,1749466239311,-500.0,0.00019178,2]
[365099336,1749466239321,-500.0,0.00019178,2]
[365099338,1749466239330,-500.0,0.00019178,2]
[365099339,1749466239339,-500.0,0.00019178,2]
[365099341,1749466239349,-500.0,0.00019178,2]
[365099343,1749466239359,-500.0,0.00019178,2]
[365099345,1749466239368,-500.0,0.00019178,2]
[365099347,1749466239377,-500.0,0.00019178,2]
[365099349,1749466239387,-500.0,0.00019178,2]
[365099351,1749466239396,-500.0,0.00019178,2]
[365099353,1749466239405,-500.0,0.00019178,2]
[365099354,1749466239415,-500.0,0.00019178,2]
[365099356,1749466239424,-500.0,0.00019178,2]
[365099358,1749466239433,-500.0,0.00019178,2]
[365099360,1749466239443,-500.0,0.00019178,2]
[365099362,1749466239453,-492.8596317,0.00019178,2]
[365099364,1749466239462,-500.0,0.00019178,2]
[365099365,1749466239471,-500.0,0.00019178,2]
[365099367,1749466239481,-500.0,0.00019178,2]
[365099369,1749466239490,-500.0,0.00019178,2]
[365099371,1749466239499,-500.0,0.00019178,2]
[365099373,1749466239508,-500.0,0.00019178,2]
[365099374,1749466239517,-500.0,0.00019178,2]
[365099376,1749466239526,-500.0,0.00019178,2]
[365099378,1749466239535,-500.0,0.00019178,2]
[365099380,1749466239546,-500.0,0.00019178,2]
[365099382,1749466239557,-500.0,0.00019178,2]
[365099383,1749466239566,-500.0,0.00019178,2]
[365099385,1749466239575,-500.0,0.00019178,2]
[365099387,1749466239586,-500.0,0.00019178,2]
[365099389,1749466239595,-500.0,0.00019178,2]
[365099391,1749466239605,-500.0,0.00019178,2]
[365099393,1749466239615,-500.0,0.00019178,2]
[365099395,1749466239624,-10146.46433493,0.000199,2]
[365099397,1749466239633,-18028.02880324,0.000199,2]
[365099398,1749466239643,-843.80122767,0.000199,2]
[365099400,1749466239652,-163.71518597,0.000199,2]
[365099402,1749466239661,-1603.94290088,0.000199,2]
[365099404,1749466239670,-3898.66703481,0.000199,2]
[365099406,1749466239679,-16857.8840176,0.000199,2]
[365099408,1749466239689,-246.05198787,0.000199,2]
[365099409,1749466239698,-1397.85,0.00019963,2]
[365099411,1749466239707,-600.0,0.0001997,2]
[365099413,1749466239718,-156.23645294,0.00019973,2]
[365099415,1749466239727,-160.59841573,0.00019973,2]
[365099417,1749466239737,-500.0,0.00019973,2]
[365099419,1749466239746,-168.25934684,0.00019973,2]
[365099421,1749466239755,-300.68183345,0.00019973,2]
[365099423,1749466239764,-522.31288741,0.00019973,2]
[365099424,1749466239773,-500.0,0.00019973,2]
[365099426,1749466239782,-297.02892017,0.00019973,2]
[365099428,1749466239792,-600.14451463,0.00019973,2]
[365099430,1749466239801,-500.0,0.00019973,2]
[365099432,1749466239810,-502.84779182,0.00019973,2]
[365099434,1749466239819,-500.0,0.00019973,2]
[365099435,1749466239829,-500.0,0.00019973,2]
[365099437,1749466239839,-500.0,0.00019973,2]
[365099439,1749466239849,-500.0,0.00019973,2]
[365099441,1749466239858,-500.0,0.00019973,2]
[365099443,1749466239867,-500.0,0.00019973,2]
[365099445,1749466239876,-500.0,0.00019973,2]
[365099447,1749466239886,-500.0,0.00019973,2]
[365099448,1749466239895,-150.28,0.00019989,2]
[365099450,1749466239904,-150.28,0.00019989,2]
[365099452,1749466239914,-150.28,0.00019989,2]
[365099454,1749466239923,-150.28,0.00019989,2]
[365099456,1749466239932,-150.28,0.0001999,2]
[365099458,1749466239944,-150.28,0.0001999,2]
[365099460,1749466239953,-150.28,0.0001999,2]
[365099462,1749466239962,-150.28,0.0001999,2]
[365099464,1749466239971,-150.28,0.0001999,2]
[365099466,1749466239981,-150.28,0.0001999,2]
[365099468,1749466239990,-150.28,0.0001999,2]
[365099469,1749466239998,-150.28,0.0001999,2]
[365099470,1749466240007,-150.28,0.0001999,2]
[365099471,1749466240016,-150.28,0.0001999,2]
[365099472,1749466240025,-150.28,0.0001999,2]
[365099473,1749466240035,-180250.87511961,0.0001999,2]
[365099474,1749466240045,-150.28,0.0001999,2]
[365099475,1749466240055,-150.28,0.0001999,2]
[365099476,1749466240064,-150.28,0.0001999,2]
[365099477,1749466240074,-150.28,0.0001999,2]
[365099478,1749466240083,-150.28,0.0001999,2]
[365099479,1749466240094,-150.28,0.0001999,2]
[365099493,1749466240252,-150.28,0.0001999,2]
[365099495,1749466240262,-150.28,0.0001999,2]
[365099497,1749466240271,-150.28,0.0001999,2]
[365099499,1749466240281,-150.28,0.0001999,2]
[365099501,1749466240291,-150.28,0.0001999,2]
[365099503,1749466240301,-150.28,0.0001999,2]
[365099505,1749466240310,-150.28,0.0001999,2]
[365099507,1749466240320,-150.28,0.0001999,2]
[365099509,1749466240329,-150.28,0.0001999,2]
[365099511,1749466240339,-150.28,0.0001999,2]
[365099513,1749466240349,-150.28,0.0001999,2]